bitfinex/quotes_ETHUSD_20240621
["timestamp","ask_amount","ask_price","bid_price","bid_amount"]
[1718969736604,2.07208068,3511.1,3510.4,2.105]
[1718969736803,2.07208068,3511.0,3510.4,2.105]
[1718969737032,3.0,3511.5,3510.4,2.105]
[1718969737033,2.07208068,3510.9,3510.4,2.105]
[1718969737229,2.07208068,3510.8,3510.4,2.105]
[1718969737396,3.0,3511.5,3510.4,2.105]
[1718969737564,3.11448988,3511.4,3510.4,2.105]
[1718969737770,2.4912,3511.6,3510.4,2.105]
[1718969737771,3.0,3511.3,3510.4,2.105]
[1718969737971,2.07202959,3511.2,3510.4,2.105]
[1718969738165,5.07202959,3511.2,3510.4,2.105]
[1718969738393,2.07202959,3511.1,3510.4,2.105]
[1718969738877,2.07202959,3511.0,3510.4,2.105]
[1718969739078,2.07202959,3510.9,3510.4,2.105]
[1718969739278,2.07202959,3510.8,3510.4,2.105]
[1718969739494,3.0,3511.3,3510.4,2.105]
[1718969739495,3.0,3511.5,3510.4,2.3705]
[1718969739790,2.07189406,3511.4,3510.8,2.105]
[1718969739996,2.07189406,3511.3,3510.8,2.105]
[1718969740186,2.07189406,3511.2,3510.8,2.105]
[1718969740384,2.07189406,3511.1,3510.8,2.105]
[1718969740582,2.07189406,3511.0,3510.8,2.105]
[1718969740786,0.560777,3511.8,3510.8,2.105]
[1718969741114,2.56515575,3511.7,3510.8,2.105]
[1718969741309,5.07185657,3511.6,3510.8,2.105]
[1718969741552,5.56518601,3511.5,3510.8,2.105]
[1718969741681,2.07188101,3511.4,3510.8,2.105]
[1718969742002,2.07188101,3511.3,3510.8,2.105]
[1718969742210,2.07188101,3511.2,3510.8,2.105]
[1718969742374,3.23707,3511.9,3510.8,2.105]
[1718969742578,2.56507722,3511.8,3510.8,2.3155]
[1718969742817,5.56507722,3511.7,3510.9,0.07544339]
[1718969743027,2.56507722,3511.6,3510.9,0.07544339]
[1718969743179,2.07179314,3511.5,3510.9,0.07544339]
[1718969743375,2.07179314,3511.4,3510.9,0.07544339]
[1718969743583,2.07179314,3511.3,3510.9,0.07544339]
[1718969743781,2.07179314,3511.2,3510.9,0.07544339]
[1718969744076,3.9168547,3511.7,3510.9,0.07544339]
[1718969744077,3.0,3511.7,3510.9,0.07544339]
[1718969744283,2.56516735,3511.6,3510.9,0.07544339]
[1718969744579,2.82168409,3511.5,3510.9,0.07544339]
[1718969744795,2.56516735,3511.4,3510.9,0.07544339]
[1718969745000,2.07186696,3511.3,3510.9,0.07544339]
[1718969745290,2.07186696,3511.2,3510.9,0.07544339]
[1718969745610,2.07186696,3511.1,3510.9,0.07544339]
[1718969745779,2.07186696,3511.0,3510.9,0.07544339]
[1718969746382,2.07186696,3511.6,3510.4,2.105]
[1718969746618,2.56520287,3511.5,3510.9,0.07551053]
[1718969746812,2.56520287,3511.4,3510.3,21.23298959]
[1718969747116,2.56520287,3511.3,3510.3,21.23298959]
[1718969747321,2.56534379,3511.2,3510.4,0.07428335]
[1718969747529,2.56534955,3511.1,3510.4,0.07428335]
[1718969747678,2.4306,3511.3,3510.4,0.07428335]
[1718969747679,3.06494451,3511.0,3510.4,0.07428335]
[1718969747883,2.4306,3511.3,3510.4,0.07428335]
[1718969747884,2.56534955,3510.9,3510.4,0.07428335]
[1718969748128,2.56534955,3510.8,3510.4,0.07428335]
[1718969748305,2.07200845,3510.7,3510.4,0.07428335]
[1718969748614,2.07200845,3510.6,3510.4,0.07428335]
[1718969748832,2.07200845,3510.6,3510.0,2.2632]
[1718969748980,2.07200845,3510.6,3510.5,0.07428335]
[1718969749179,0.49340321,3510.6,3510.0,2.2632]
[1718969749382,2.07200845,3510.5,3510.0,2.2632]
[1718969749582,2.07200845,3510.4,3510.0,2.2632]
[1718969749884,2.07200845,3510.3,3510.0,2.2632]
[1718969750204,0.37502609,3510.9,3510.0,2.2632]
[1718969750404,2.56573082,3510.8,3510.0,2.2632]
[1718969750608,2.56573082,3510.7,3510.0,2.2632]
[1718969750817,3.0,3511.2,3510.0,2.2632]
[1718969750984,2.5657293,3511.1,3510.0,2.2632]
[1718969751319,6.06536223,3511.0,3510.0,2.2632]
[1718969751487,2.5657328,3510.9,3510.0,2.2632]
[1718969751687,2.5657328,3510.8,3510.0,2.2632]
[1718969751886,2.5657328,3510.7,3510.0,2.2632]
[1718969752197,2.5657328,3510.6,3510.0,2.2632]
[1718969752392,2.5657328,3510.5,3510.0,2.2632]
[1718969752693,2.07232265,3510.4,3510.0,2.2632]
[1718969752905,2.07232265,3510.3,3510.0,3.38481896]
[1718969753112,3.0,3511.0,3510.0,3.38481896]
[1718969753312,2.4306,3511.3,3510.0,3.38481896]
[1718969753313,2.56565098,3510.9,3510.0,3.38481896]
[1718969753622,2.56563088,3510.8,3510.0,3.38481896]
[1718969753782,2.56563088,3510.7,3510.1,0.758173]
[1718969753985,2.56563088,3510.6,3510.1,0.758173]
[1718969754179,2.56563088,3510.5,3510.0,2.2632]
[1718969754397,2.07224033,3510.4,3510.0,2.2632]
[1718969754607,3.24306,3511.2,3510.0,2.2632]
[1718969754795,2.56564496,3511.1,3510.0,2.2632]
[1718969754984,5.56564496,3511.0,3510.0,3.38481896]
[1718969755214,2.56564496,3510.9,3510.0,3.38481896]
[1718969755407,2.56564496,3510.8,3510.0,3.38481896]
[1718969755613,2.56564496,3510.7,3510.1,0.758173]
[1718969755812,2.56564496,3510.6,3510.1,0.758173]
[1718969756011,2.56564496,3510.5,3510.1,0.758173]
[1718969756228,3.0,3511.0,3510.2,0.98693626]
[1718969756408,2.5655289,3510.9,3510.2,0.98693626]
[1718969756606,2.4306,3511.3,3510.2,0.98693626]
[1718969756807,0.49337185,3510.8,3510.2,0.98693626]
[1718969757014,2.56553308,3510.7,3510.3,0.32501363]
[1718969757325,2.56553308,3510.6,3510.4,0.07468974]
[1718969757487,2.07216123,3510.5,3510.2,2.105]
[1718969757694,2.4855,3512.4,3510.3,0.51150974]
[1718969757917,2.4855,3512.2,3510.4,6.84798959]
[1718969758134,2.81387779,3512.1,3510.4,6.84798959]
[1718969758313,2.56532779,3512.0,3510.4,6.84798959]
[1718969758490,5.56532779,3511.9,3510.5,0.07468974]
[1718969758689,2.56532779,3511.8,3510.5,0.07468974]
[1718969758916,0.24855,3512.1,3510.5,0.07468974]
[1718969758917,2.4186,3511.6,3510.5,0.07468974]
[1718969759125,2.56532779,3511.5,3510.5,0.07468974]
[1718969759327,5.56532779,3511.4,3510.5,0.07468974]
[1718969759491,5.07199495,3511.3,3510.5,0.13165532]
[1718969759815,3.0,3511.3,3510.5,1.02683623]
[1718969760012,2.56555558,3511.2,3510.5,0.07468974]
[1718969760223,3.0,3511.5,3510.5,0.07468974]
[1718969760393,0.49337542,3511.1,3510.5,0.07468974]
[1718969760593,5.61403676,3511.4,3510.5,0.07468974]
[1718969760594,2.56555218,3511.0,3510.5,0.07468974]
[1718969760819,2.56555218,3510.9,3510.5,0.07468974]
[1718969760986,3.0,3511.4,3510.5,0.07468974]
[1718969760987,2.56556855,3510.8,3510.5,0.07468974]
[1718969761191,2.56556855,3510.7,3510.5,0.07468974]
[1718969761426,2.56556855,3510.6,3510.0,9.11118959]
[1718969761604,2.56556855,3510.5,3510.1,1.12161896]
[1718969761806,2.56556855,3510.4,3510.0,9.11118959]
[1718969762017,2.56556855,3510.3,3510.0,9.11118959]
[1718969762232,3.0,3511.4,3510.0,9.11118959]
[1718969762406,2.56547224,3511.3,3510.1,0.55]
[1718969762599,2.56547224,3511.2,3510.2,0.96611896]
[1718969762804,2.56547224,3511.1,3510.2,0.96611896]
[1718969763012,2.56547224,3511.0,3510.2,0.96611896]
[1718969763295,2.56547224,3510.9,3510.3,0.913673]
[1718969763596,0.273405,3512.0,3510.3,0.913673]
[1718969763597,2.56547224,3510.8,3510.6,2.105]
[1718969763801,2.3098,3512.0,3510.7,2.3701]
[1718969764020,2.56494691,3511.9,3510.7,2.5806]
[1718969764215,2.56494691,3511.8,3510.7,2.5806]
[1718969764427,2.56494691,3511.7,3510.8,0.05472705]
[1718969764634,2.56494691,3511.6,3510.8,0.81034601]
[1718969764832,2.56494691,3511.5,3510.8,0.81034601]
[1718969765029,2.56494691,3511.4,3510.9,0.913673]
[1718969765254,2.07179734,3511.3,3510.7,2.3701]
[1718969765455,2.56508242,3511.2,3510.7,2.3701]
[1718969765657,2.56508242,3511.1,3510.7,2.3701]
[1718969765861,2.56508242,3511.0,3510.7,2.81761]
[1718969766022,2.56508242,3510.9,3510.7,2.81761]
[1718969766223,0.554078,3511.8,3510.8,0.281761]
[1718969766418,2.56519672,3511.7,3510.8,0.281761]
[1718969766660,2.56519672,3511.6,3510.7,2.81761]
[1718969766833,2.56519672,3511.5,3510.7,2.81761]
[1718969767035,2.56519672,3511.4,3510.7,2.81761]
[1718969767236,2.56519672,3511.3,3510.7,2.81761]
[1718969767438,2.56519672,3511.2,3510.7,2.81761]
[1718969767749,2.56519672,3511.1,3510.7,2.81761]
[1718969767936,2.56519672,3511.0,3510.8,0.281761]
[1718969768132,0.554078,3511.8,3510.7,2.3701]
[1718969768365,2.56517932,3511.7,3510.7,2.3701]
[1718969768661,2.56518406,3511.6,3510.7,2.3701]
[1718969768958,5.56518406,3511.5,3510.7,2.3701]
[1718969769122,3.0,3511.9,3510.7,2.3701]
[1718969769123,2.56518406,3511.4,3510.7,2.3701]
[1718969770261,2.56518406,3511.4,3510.3,8.95298959]
[1718969770262,2.56518406,3511.3,3510.3,8.95298959]
[1718969770439,2.56518406,3511.2,3510.4,0.55]
[1718969770641,2.56518406,3511.1,3510.4,0.55]
[1718969770825,2.56518406,3511.0,3510.4,0.55]
[1718969771029,2.56518406,3510.9,3510.4,0.55]
[1718969771252,2.3242,3511.3,3510.3,6.84798959]
[1718969771427,2.79808341,3511.2,3510.3,6.84798959]
[1718969771749,2.56566341,3511.1,3510.3,6.84798959]
[1718969771934,5.56566341,3511.0,3510.3,6.84798959]
[1718969772265,2.56566341,3510.9,3510.3,6.84798959]
[1718969772462,2.56566341,3510.8,3510.4,0.07443531]
[1718969772641,2.56566341,3510.7,3510.4,0.07443531]
[1718969772837,2.56566341,3510.6,3510.4,0.07443531]
[1718969773049,2.56566341,3510.5,3510.4,0.07443531]
[1718969774351,0.49339681,3510.5,3510.4,0.07443531]
[1718969774562,2.3291374,3510.5,3510.4,0.07443531]
[1718969774741,2.3291374,3510.5,3509.5,11.33348959]
[1718969774742,2.82253421,3510.5,3509.5,11.33348959]
[1718969775062,2.56596787,3510.4,3509.6,0.07443531]
[1718969775266,5.07257106,3510.3,3509.6,0.07443531]
[1718969775423,2.56596787,3510.2,3509.6,0.07443531]
[1718969775770,2.56596787,3510.1,3509.6,0.07443531]
[1718969775972,3.0,3510.6,3509.6,0.07443531]
[1718969775973,5.56596787,3510.0,3509.6,0.07443531]
[1718969776262,2.56596787,3509.9,3509.2,19.12798959]
[1718969776469,2.56596787,3509.8,3509.7,0.07237882]
[1718969776764,2.56596787,3509.8,3509.7,0.07252348]
[1718969776965,5.56596787,3509.8,3509.2,19.12798959]
[1718969777264,5.56596787,3509.7,3509.2,19.12798959]
[1718969777475,3.0,3509.7,3508.9,2.3037]
[1718969777770,4.63960715,3509.6,3508.9,2.53407]
[1718969777974,2.56663118,3509.5,3508.9,2.53407]
[1718969778131,2.56663118,3509.4,3508.9,2.53407]
[1718969778331,2.56663118,3509.3,3508.9,2.53407]
[1718969778571,2.07301557,3509.6,3508.9,2.53407]
[1718969778867,2.56661481,3509.5,3508.9,2.53407]
[1718969779168,2.56661481,3509.4,3508.9,2.53407]
[1718969779327,2.07303499,3509.3,3508.9,2.53407]
[1718969779531,2.07303499,3509.2,3508.9,2.3037]
[1718969779743,2.07303499,3509.1,3508.9,2.3037]
[1718969779962,2.07303499,3509.0,3508.9,2.3037]
[1718969780159,2.07303499,3509.0,3508.8,6.84798959]
[1718969780467,2.07303499,3508.9,3508.8,6.84798959]
[1718969780660,2.07303499,3508.9,3508.5,4.5668]
[1718969780867,2.07309006,3508.8,3508.6,0.55]
[1718969783047,2.56665803,3509.4,3508.5,2.4618]
[1718969783260,2.07306978,3509.3,3508.5,3.60327896]
[1718969783459,2.07306978,3509.2,3508.5,3.60327896]
[1718969783698,3.0,3509.5,3508.5,3.60327896]
[1718969783699,2.07308851,3509.1,3508.5,3.60327896]
[1718969783836,2.07308851,3509.0,3508.5,3.60327896]
[1718969784031,2.07308851,3508.9,3508.5,3.60327896]
[1718969784235,3.0,3509.9,3508.6,0.5708279]
[1718969784449,2.3688,3510.0,3508.6,6.84798959]
[1718969784450,2.56668144,3509.8,3508.6,6.84798959]
[1718969784648,5.56668144,3509.7,3508.6,6.84798959]
[1718969784870,2.56668144,3509.6,3508.6,6.84798959]
[1718969785071,2.56668144,3509.5,3508.6,7.98946855]
[1718969785268,2.07308886,3509.4,3508.6,7.98946855]
[1718969785454,2.07308886,3509.3,3508.6,7.98946855]
[1718969785649,2.07308886,3509.2,3508.7,0.738313]
[1718969785970,2.07308886,3509.1,3508.7,0.738313]
[1718969786287,3.23688,3509.9,3508.7,0.738313]
[1718969786472,3.12717923,3509.8,3508.7,0.738313]
[1718969786692,3.0,3509.7,3508.7,0.738313]
[1718969786833,2.56660085,3509.6,3508.7,0.738313]
[1718969787041,3.0,3509.5,3508.7,0.738313]
[1718969787239,2.07303803,3509.4,3508.7,0.738313]
[1718969787438,2.07303803,3509.3,3508.8,0.07297515]
[1718969787746,2.07303803,3509.2,3508.9,0.07297515]
[1718969787940,2.07303803,3509.1,3508.8,1.00481026]
[1718969788138,3.23688,3509.9,3508.9,0.07297515]
[1718969788377,2.56653472,3509.8,3508.9,0.07297515]
[1718969788538,5.56653472,3509.7,3508.9,0.07297515]
[1718969788740,2.07297035,3509.6,3508.9,0.07297515]
[1718969788945,2.07297035,3509.5,3508.9,0.07297515]
[1718969789159,2.07297035,3509.4,3508.9,0.97557162]
[1718969789340,2.07297035,3509.3,3508.9,0.07297515]
[1718969789540,2.07297035,3509.2,3508.9,0.07297515]
[1718969789762,3.0,3509.9,3508.9,0.07297515]
[1718969790071,2.56661232,3509.8,3508.9,0.07297515]
[1718969790368,5.56661232,3509.7,3508.9,0.07297515]
[1718969790569,2.56661232,3509.6,3508.9,0.07297515]
[1718969790770,3.0,3509.7,3508.9,0.07297515]
[1718969790771,5.56661232,3509.5,3508.9,0.07297515]
[1718969790973,2.07303303,3509.4,3508.9,0.07297515]
[1718969791371,7.38613303,3509.4,3508.9,0.07297515]
[1718969791576,2.07303303,3509.3,3509.0,0.07297515]
[1718969791773,0.49363208,3509.2,3509.0,0.07297515]
[1718969791965,0.49363208,3509.2,3508.7,6.84798959]
[1718969791966,2.07303303,3509.1,3508.7,6.84798959]
[1718969792164,2.07303303,3509.1,3508.8,0.07297515]
[1718969792165,0.49363208,3509.0,3508.8,0.07297515]
[1718969792368,2.07303303,3508.9,3508.1,6.84798959]
[1718969792569,2.07303303,3508.9,3508.2,0.07297515]
[1718969792880,2.07303303,3508.8,3508.2,0.07297515]
[1718969793061,2.07348838,3508.7,3508.2,0.07297515]
[1718969793260,3.0,3509.2,3508.2,0.07297515]
[1718969793261,2.07348838,3508.6,3508.2,0.07297515]
[1718969793456,2.07348838,3508.5,3508.2,0.07297515]
[1718969793791,3.0,3509.1,3508.2,0.07297515]
[1718969793947,2.92034435,3509.0,3508.0,2.3353]
[1718969794140,2.56721335,3508.9,3508.1,0.07297515]
[1718969794346,2.07351828,3508.8,3508.1,0.07297515]
[1718969794547,2.07351828,3508.7,3508.1,2.41880267]
[1718969794796,2.07351828,3508.6,3508.1,2.41880267]
[1718969795058,3.0,3509.3,3508.2,0.55]
[1718969795297,2.07323196,3509.2,3508.3,0.53041027]
[1718969795560,2.07323196,3509.1,3508.3,0.60338542]
[1718969795783,2.07323196,3509.0,3508.3,0.60338542]
[1718969795951,2.07323196,3508.9,3508.3,0.60338542]
[1718969796151,2.07323196,3508.9,3508.4,0.34992129]
[1718969796394,3.53565,3509.6,3508.4,0.34992129]
[1718969796714,0.493627,3509.5,3508.5,2.44247515]
[1718969796861,2.5668604,3509.5,3508.5,2.44247515]
[1718969796980,5.5668604,3509.4,3508.5,2.44247515]
[1718969797147,2.5668604,3509.3,3508.5,2.44247515]
[1718969797351,5.56690831,3509.2,3508.5,2.44247515]
[1718969797545,2.56690831,3509.1,3508.5,2.44247515]
[1718969797790,2.07327893,3509.0,3508.5,2.44247515]
[1718969797951,3.0,3509.4,3508.5,2.44247515]
[1718969798163,2.56684857,3509.3,3508.5,2.82975582]
[1718969798375,5.56684857,3509.2,3508.5,2.82975582]
[1718969798687,2.56685208,3509.1,3508.5,2.44247515]
[1718969798984,2.07322385,3509.0,3508.5,2.44247515]
[1718969799164,3.0,3509.6,3508.5,2.44247515]
[1718969799492,2.56681959,3509.5,3508.5,2.77671479]
[1718969799692,5.56681959,3509.4,3508.5,2.77671479]
[1718969799986,2.3565,3509.7,3508.5,2.77671479]
[1718969799987,5.56681959,3509.3,3508.5,2.77671479]
[1718969800200,2.56681959,3509.2,3508.6,0.31266361]
[1718969800384,2.56681959,3509.1,3508.6,0.31266361]
[1718969800583,3.0,3509.7,3508.7,0.59442596]
[1718969800785,2.56663993,3509.6,3508.7,0.59442596]
[1718969800989,5.56663993,3509.5,3508.7,0.59442596]
[1718969801294,2.56663993,3509.4,3508.7,0.59442596]
[1718969801517,2.56663993,3509.3,3508.8,0.53815896]
[1718969801692,0.4935846,3509.2,3508.8,0.53815896]
[1718969801893,0.4935846,3509.4,3508.8,0.53815896]
[1718969802093,2.07304775,3509.3,3508.6,0.31266361]
[1718969802400,3.0,3509.8,3508.6,0.31266361]
[1718969802605,2.56662183,3509.7,3508.7,0.07341995]
[1718969802805,5.56662183,3509.6,3508.7,1.24427726]
[1718969803110,2.56662183,3509.5,3508.7,1.24427726]
[1718969803313,5.56662183,3509.4,3508.7,1.24427726]
[1718969803528,2.56662183,3509.3,3508.7,1.24427726]
[1718969803727,0.49358206,3509.2,3508.7,1.24427726]
[1718969804083,0.49358206,3509.1,3508.7,1.24427726]
[1718969804283,0.49358206,3509.7,3508.8,0.39627104]
[1718969804516,2.07304056,3509.6,3508.8,0.39627104]
[1718969804806,0.49358206,3509.5,3508.9,0.07341995]
[1718969804979,2.07304056,3509.4,3508.9,0.07341995]
[1718969805180,0.49358206,3509.3,3508.9,0.07341995]
[1718969805486,2.3097,3509.5,3508.9,0.07341995]
[1718969805829,2.3097,3509.5,3508.5,9.21748959]
[1718969805830,2.56692102,3509.4,3508.5,6.84798959]
[1718969806032,2.5669578,3509.3,3508.6,0.07341995]
[1718969806186,2.5669578,3509.2,3508.6,0.07341995]
[1718969806379,2.6097,3509.5,3508.6,0.07341995]
[1718969806380,2.5669578,3509.1,3508.6,0.07341995]
[1718969806608,2.5669578,3509.0,3508.6,0.07341995]
[1718969806808,2.56696696,3508.9,3508.6,0.07341995]
[1718969807015,0.49364749,3508.8,3508.6,0.07341995]
[1718969807177,0.49364749,3509.2,3508.6,0.07341995]
[1718969807379,2.56696556,3509.1,3508.5,6.84798959]
[1718969807613,2.56696556,3509.0,3508.6,0.07341288]
[1718969807821,2.56696556,3508.9,3508.5,6.84798959]
[1718969808115,0.49364749,3508.8,3508.6,0.07341288]
[1718969808320,0.49364749,3509.2,3508.6,0.07341288]
[1718969808480,2.56696096,3509.1,3508.6,0.07341288]
[1718969808701,3.56097,3509.4,3508.6,0.07341288]
[1718969808881,0.49364342,3509.0,3508.6,0.07341288]
[1718969809118,2.56694582,3508.9,3508.6,0.07341288]
[1718969809281,0.49364342,3508.8,3508.6,0.07341288]
[1718969809485,3.56097,3509.4,3508.6,0.07341288]
[1718969809486,0.49364342,3508.7,3508.6,0.07341288]
[1718969809698,0.49364342,3509.3,3508.6,0.07341288]
[1718969810016,2.07332029,3509.2,3508.6,0.07341288]
[1718969810226,0.49364342,3509.1,3508.6,0.07341288]
[1718969810516,2.07332029,3509.0,3508.6,0.07341288]
[1718969810815,0.49364342,3508.9,3508.6,0.07341288]
[1718969811021,2.07332029,3508.8,3508.6,0.07341288]
[1718969811180,0.49364342,3508.7,3508.6,0.07341288]
[1718969811385,2.56696371,3508.7,3508.6,0.07341288]
[1718969812004,2.56714703,3508.7,3508.6,0.07341288]
[1718969814024,3.06508173,3508.7,3508.6,0.07341288]
[1718969814319,6.06508173,3508.7,3507.9,2.4597]
[1718969814632,2.56716192,3508.6,3507.9,2.4597]
[1718969814925,2.56716192,3508.5,3508.0,0.07341288]
[1718969815161,2.07347729,3508.4,3508.0,0.07341288]
[1718969815300,2.56716236,3508.3,3508.0,0.07341288]
[1718969815506,3.0,3508.8,3508.0,0.07341288]
[1718969815693,2.4122,3508.9,3508.0,0.07341288]
[1718969815694,0.49369127,3508.2,3508.0,0.07341288]
[1718969816029,2.56719461,3508.1,3508.0,0.07341288]
[1718969816407,2.56723879,3508.1,3508.0,0.07341288]
[1718969816926,2.07353903,3508.1,3508.0,0.07341288]
[1718969817327,0.49369315,3508.1,3508.0,0.07341288]
[1718969817515,2.07353903,3508.1,3508.0,1.01152313]
[1718969817700,0.49369503,3508.1,3508.0,0.07341288]
[1718969817893,2.56723406,3508.4,3508.0,0.07341288]
[1718969818098,2.56723406,3508.3,3508.0,0.07341288]
[1718969818334,2.56723301,3508.2,3508.0,0.07341288]
[1718969818498,2.56723301,3508.1,3508.0,0.07341288]
[1718969819334,2.56723301,3508.1,3507.6,2.105]
[1718969819513,3.0,3508.8,3508.0,0.06880453]
[1718969819702,3.1087659,3508.7,3507.6,2.105]
[1718969819995,5.5675459,3508.6,3507.6,2.105]
[1718969820207,2.5675459,3508.5,3507.7,0.06880453]
[1718969820410,5.5675459,3508.4,3507.7,0.06880453]
[1718969820609,2.5675459,3508.3,3507.7,0.06880453]
[1718969820811,3.0,3508.4,3507.7,0.06880453]
[1718969821055,2.56741977,3508.3,3507.7,0.06880453]
[1718969821305,2.56741977,3508.2,3507.7,0.06880453]
[1718969821610,2.56741977,3508.1,3507.5,2.2558]
[1718969821930,2.56741977,3508.0,3507.6,0.06880453]
[1718969822137,2.56741977,3507.9,3507.6,0.06880453]
[1718969822434,0.565342,3508.7,3507.6,0.06880453]
[1718969822435,2.56741977,3507.8,3507.6,0.06880453]
[1718969822609,2.82416175,3507.7,3507.1,9.13008959]
[1718969822812,2.56746076,3507.6,3507.2,0.06880453]
[1718969823117,2.0736852,3507.5,3507.2,0.06880453]
[1718969823305,4.14756186,3507.4,3507.2,0.06880453]
[1718969823501,4.14756186,3507.3,3507.2,0.06880453]
[1718969823712,4.14775083,3507.3,3507.2,0.06880453]
[1718969824114,4.14775753,3507.3,3507.2,0.06880453]
[1718969824940,4.14776716,3507.3,3507.2,0.06880453]
[1718969826028,4.14776716,3507.3,3506.9,2.105]
[1718969826340,3.22541,3508.2,3507.0,0.06880453]
[1718969826341,4.14787257,3507.2,3507.0,0.06880453]
[1718969826559,4.14787257,3507.1,3507.0,0.06880453]
[1718969826706,4.14809245,3507.1,3507.0,0.06880453]
[1718969827760,4.14809245,3507.1,3506.6,6.84798959]
[1718969827938,3.0,3507.6,3507.0,0.06880453]
[1718969828114,4.64212389,3507.5,3506.6,6.84798959]
[1718969828310,7.64212389,3507.4,3507.1,0.06880453]
[1718969828526,7.14828229,3507.3,3506.6,7.96986855]
[1718969828840,4.14828229,3507.2,3506.6,7.96986855]
[1718969829138,4.14828229,3507.1,3506.4,2.2658]
[1718969829299,4.14828229,3507.0,3506.4,4.3708]
[1718969829500,3.0,3507.6,3506.4,4.80788]
[1718969829501,4.14828229,3506.9,3506.4,4.80788]
[1718969829761,4.14853731,3506.8,3506.4,4.80788]
[1718969830040,2.07425089,3506.7,3506.4,4.3708]
[1718969830225,3.53531,3507.6,3506.4,4.3708]
[1718969830427,4.64231186,3507.5,3506.4,4.3708]
[1718969830644,7.64234151,3507.4,3506.4,4.3708]
[1718969830815,4.14848108,3507.3,3506.4,4.3708]
[1718969831147,0.588841,3507.5,3506.4,4.3708]
[1718969831148,4.64235922,3507.2,3506.4,4.3708]
[1718969831346,4.14848108,3507.1,3506.4,4.3708]
[1718969831554,4.14848108,3507.0,3506.4,4.3708]
[1718969831859,2.07421384,3506.9,3506.4,4.3708]
[1718969832040,2.07421384,3506.8,3506.4,4.3708]
[1718969832246,3.0,3507.3,3506.4,4.3708]
[1718969832442,4.14850771,3507.2,3506.4,4.3708]
[1718969832620,4.14850771,3507.1,3506.4,2.2658]
[1718969832921,2.07430042,3507.0,3506.5,0.06909006]
[1718969833019,2.07430042,3506.9,3506.5,0.06909006]
[1718969833240,3.0,3507.3,3506.5,0.06909006]
[1718969833466,4.51335942,3507.2,3506.5,0.06909006]
[1718969833657,4.14858691,3507.1,3506.5,0.06909006]
[1718969833864,4.14858691,3507.0,3506.5,0.06909006]
[1718969834170,0.36477251,3507.2,3506.5,0.06909006]
[1718969834171,2.07426335,3506.9,3506.5,0.06909006]
[1718969834324,3.0,3507.6,3506.5,0.06909006]
[1718969834666,4.64238453,3507.5,3506.5,0.06909006]
[1718969834830,7.64238453,3507.4,3506.5,0.06909006]
[1718969835159,8.40662298,3507.3,3506.4,2.2658]
[1718969835465,4.14851403,3507.2,3506.7,2.105]
[1718969835642,2.07425476,3507.1,3506.8,0.0674234]
[1718969836013,3.0,3507.6,3506.7,2.105]
[1718969836263,4.64229683,3507.5,3506.4,2.2658]
[1718969836470,7.64229683,3507.4,3506.5,0.0674234]
[1718969836623,5.40652651,3507.3,3506.5,0.0674234]
[1718969836824,4.64229683,3507.2,3506.5,0.0674234]
[1718969837130,4.14843642,3507.1,3506.5,0.0674234]
[1718969837370,2.07421427,3507.0,3506.5,0.0674234]
[1718969837578,2.07421427,3506.9,3506.5,0.0674234]
[1718969837866,2.2816357,3506.8,3506.5,0.0674234]
[1718969838023,4.64293508,3506.7,3505.8,19.12798959]
[1718969838357,2.07451847,3506.6,3505.9,0.0674234]
[1718969838562,2.07451847,3506.5,3505.9,0.0674234]
[1718969838737,4.1491447,3506.5,3505.9,0.0674234]
[1718969838933,2.07451847,3506.4,3505.9,0.0674234]
[1718969839193,3.24933,3506.9,3505.9,0.0674234]
[1718969839379,2.84292313,3506.8,3505.9,0.0674234]
[1718969839686,7.64334828,3506.7,3505.9,0.0674234]
[1718969839980,7.64334828,3506.6,3505.9,0.0674234]
[1718969840182,2.07468703,3506.5,3505.9,0.0674234]
[1718969840495,3.274263,3506.8,3505.9,0.0674234]
[1718969840650,4.64334898,3506.7,3505.9,0.0674234]
[1718969840845,0.274263,3506.8,3505.9,0.0674234]
[1718969840846,5.56866155,3506.6,3505.9,0.0674234]
[1718969841059,2.07468714,3506.5,3505.9,0.0674234]
[1718969841577,0.274263,3506.8,3505.9,0.0674234]
[1718969841888,5.2201145,3506.7,3505.9,0.0674234]
[1718969842117,2.4997,3506.5,3505.9,0.0674234]
[1718969842313,2.07471163,3506.4,3505.9,0.0674234]
[1718969842451,3.0,3506.4,3505.9,0.0674234]
[1718969842860,2.5688785,3506.3,3505.9,0.0674234]
[1718969843092,2.58160564,3506.2,3505.8,6.84798959]
[1718969843397,3.0,3506.1,3505.9,0.06222849]
[1718969843684,2.4997,3506.5,3505.2,4.5507]
[1718969843685,5.4997,3506.5,3505.2,4.5507]
[1718969843889,4.8939297,3506.4,3505.3,0.06222849]
[1718969844055,4.6439597,3506.3,3505.3,0.06222849]
[1718969844248,3.24997,3506.4,3505.3,0.06222849]
[1718969844249,5.56897769,3506.2,3505.3,0.06222849]
[1718969844489,5.0749399,3506.1,3505.3,1.2083203]
[1718969844689,3.24997,3506.4,3505.3,0.06222849]
[1718969844855,4.64414445,3506.3,3505.3,0.06222849]
[1718969845053,5.56908252,3506.2,3505.3,0.06222849]
[1718969845414,3.24997,3506.4,3505.3,0.06222849]
[1718969845564,3.0,3506.1,3505.3,0.06222849]
[1718969845765,2.07503582,3506.0,3505.3,0.06222849]
[1718969846074,2.07503582,3506.0,3504.7,12.28]
[1718969846075,2.2985,3505.8,3503.9,1.143449]
[1718969846324,2.2985,3505.4,3504.0,0.05807992]
[1718969846535,4.15070282,3505.3,3504.0,0.05807992]
[1718969846730,2.2985,3505.1,3503.6,0.1214126]
[1718969846930,2.2985,3505.1,3504.1,0.05409916]
[1718969847095,2.2985,3505.1,3503.6,0.1214126]
[1718969847096,2.2985,3504.9,3503.6,0.1214126]
[1718969847422,2.4256,3504.3,3503.7,0.05409916]
[1718969847621,2.57008718,3504.2,3503.7,0.05409916]
[1718969847819,2.07583965,3504.1,3503.6,0.1214126]
[1718969847991,2.4256,3504.3,3503.6,0.1214126]
[1718969847992,0.24256,3504.2,3503.6,0.1214126]
[1718969848188,2.07574104,3504.1,3503.7,0.05107186]
[1718969849127,2.07574104,3504.0,3503.8,0.05107186]
[1718969849430,2.07574104,3503.9,3503.8,0.05107186]
[1718969849585,5.07574104,3504.6,3503.6,2.2264126]
[1718969849921,5.07574104,3504.5,3503.7,0.05107186]
[1718969850127,2.07574104,3504.4,3503.7,0.05107186]
[1718969850290,2.07574104,3504.3,3503.6,0.1214126]
[1718969850492,2.07574104,3504.2,3503.6,0.1214126]
[1718969850992,0.2657685,3504.3,3503.6,0.1214126]